Workbook

Sheet Menu
B9: NOTA: Este archivo tiene como objetivo facilitar los cálculos que en el marco de la resolución 4859 de 2019 usted debe realizar. Sin embargo, deberá correr cuantas macro sean necesarias, de acuerdo con la información que tiene disponible. Es decir, en caso de contar con información que empieza desde fechas diferentes, deberá correr macros diferentes para incorporar TODA la información que tiene disponible.
B12: Le recomendamos presentar en este formatos los resultados finales de la valoración. En caso de haber corrido más de una macro, incluya en la pestaña "Consolidado" los resultados de la regresión y los errores de cada una de las macro utilizadas, y marque el archivo como "Consolidado Final".
B16: INSTRUCCIONES
D59: Número de peajes a trabajar: | E59: 1 | H59: ¿Hasta que año va el proyecto? | I59: 2043
D62: ¿Desde cuándo se tiene información de trafico? | E62: Mes(#): | F62: 6 | H62: ¿Hasta cuándo se tiene información de trafico? | I62: Mes(#): | J62: 4
E63: Año: | F63: 2003 | I63: Año: | J63: 2023

Sheet Supuestos macro
B2: Supuestos macroeconómicos (Política macro) PIB HISTÓRICO | F2: Supuestos macroeconómicos (proyección escenario riesgo) PIB MENSUAL | K2: IPC | P2: Proyección PIB mensual ( En valores)
P3: Nota: Pegar como valor el resultado de la columna H, en la columna S.
B4: Fecha de actualización | C4: 2025-09-01 | F4: Crecimiento escenario en riesgo | G4: 0.015 | K4: Supuesto de inflación | L4: 0.03
B6: Año | C6: PIB Interno Real ($ Millones de 2015) | D6: Variación porcentual | F6: Año | G6: Mes | H6: PIB Interno Real ($ Millones de 2015) | I6: Variación porcentual | K6: Año | L6: IPC | M6: IPC Valor | N6: Indice (Constantes 2015) | P6: Año | Q6: Mes | R6: Código | S6: PIB Interno Real ($ Millones de 2015) | T6: Días hábiles
B7: 2003 | C7: 471264.174 | D7: 4.56097532 | F7: 2003 | G7: Enero | H7: =$C$7/12 -> 39272.0145 | K7: 2002 | L7: 51.4779 | M7: 51.4779 | N7: 1.710442734 | P7: 2003 | Q7: Enero | R7: =CONCATENATE(P7,Q7) -> 2003Enero | S7: 39272.0145 | T7: 21
B8: 2004 | C8: 491303.0749 | D8: 4.25215877 | F8: 2003 | G8: Febrero | H8: =$C$7/12 -> 39272.0145 | K8: 2003 | L8: 53.07 | M8: 53.07 | N8: =$L$20/L8 -> 1.659129452 | P8: 2003 | Q8: Febrero | R8: =CONCATENATE(P8,Q8) -> 2003Febrero | S8: 39272.0145 | T8: 20
B9: 2005 | C9: 514853 | D9: 4.793359997 | F9: 2003 | G9: Marzo | H9: 39272.0145 | K9: 2004 | L9: 55.99 | M9: 55.99 | N9: 1.57260225 | P9: 2003 | Q9: Marzo | R9: 2003Marzo | S9: 39272.0145 | T9: 22
B10: 2006 | C10: 549435 | D10: 6.716868698 | F10: 2003 | G10: Abril | H10: 39272.0145 | K10: 2005 | L10: 58.7 | M10: 58.7 | N10: 1.5 | P10: 2003 | Q10: Abril | R10: 2003Abril | S10: 39272.0145 | T10: 19
B11: 2007 | C11: 586457 | D11: 6.738194691 | F11: 2003 | G11: Mayo | H11: 39272.0145 | K11: 2006 | L11: 61.33 | M11: 61.33 | N11: 1.435675852 | P11: 2003 | Q11: Mayo | R11: 2003Mayo | S11: 39272.0145 | T11: 21
B12: 2008 | C12: 605713 | D12: 3.283446186 | F12: 2003 | G12: Junio | H12: 39272.0145 | K12: 2007 | L12: 64.82 | M12: 64.82 | N12: 1.358377044 | P12: 2003 | Q12: Junio | R12: 2003Junio | S12: 39272.0145 | T12: 20
B13: 2009 | C13: 612616 | D13: 1.139648645 | F13: 2003 | G13: Julio | H13: =$C$7/12 -> 39272.0145 | K13: 2008 | L13: 69.8 | M13: 69.8 | N13: 1.261461318 | P13: 2003 | Q13: Julio | R13: 2003Julio | S13: 39272.0145 | T13: 20
B14: 2010 | C14: 640151 | D14: 4.494658971 | F14: 2003 | G14: Agosto | H14: 39272.0145 | K14: 2009 | L14: 71.2 | M14: 71.2 | N14: 1.236657303 | P14: 2003 | Q14: Agosto | R14: 2003Agosto | S14: 39272.0145 | T14: 21
B15: 2011 | C15: 684628 | D15: 6.947891982 | F15: 2003 | G15: Septiembre | H15: 39272.0145 | K15: 2010 | L15: 73.45 | M15: 73.45 | N15: 1.198774677 | P15: 2003 | Q15: Septiembre | R15: 2003Septiembre | S15: 39272.0145 | T15: 20
B16: 2012 | C16: 711415 | D16: 3.912635767 | F16: 2003 | G16: Octubre | H16: 39272.0145 | K16: 2011 | L16: 76.19 | M16: 76.19 | N16: 1.155663473 | P16: 2003 | Q16: Octubre | R16: 2003Octubre | S16: 39272.0145 | T16: 22
B17: 2013 | C17: 747939 | D17: 5.13399352 | F17: 2003 | G17: Noviembre | H17: 39272.0145 | K17: 2012 | L17: 78.05 | M17: 78.05 | N17: 1.128122998 | P17: 2003 | Q17: Noviembre | R17: 2003Noviembre | S17: 39272.0145 | T17: 20
B18: 2014 | C18: 781589 | D18: 4.499030001 | F18: 2003 | G18: Diciembre | H18: 39272.0145 | K18: 2013 | L18: 79.56 | M18: 79.56 | N18: 1.106711916 | P18: 2003 | Q18: Diciembre | R18: 2003Diciembre | S18: 39272.0145 | T18: 20
B19: 2015 | C19: 804692 | D19: 2.955901375 | F19: =F7+1 -> 2004 | G19: Enero | H19: =$C$8/12 -> 40941.92291 | I19: =(H19-H7)/H7 -> 0.0425215877 | K19: 2014 | L19: 82.47 | M19: 82.47 | N19: 1.067660968 | P19: =P7+1 -> 2004 | Q19: Enero | R19: 2004Enero | S19: 40941.92291 | T19: 21
B20: 2016 | C20: 821489 | D20: 2.087382502 | F20: =F8+1 -> 2004 | G20: Febrero | H20: =$C$8/12 -> 40941.92291 | I20: =(H20-H8)/H8 -> 0.0425215877 | K20: 2015 | L20: 88.05 | M20: 88.05 | N20: 1 | P20: =P8+1 -> 2004 | Q20: Febrero | R20: 2004Febrero | S20: 40941.92291 | T20: 20
B21: 2017 | C21: 832656 | D21: 1.359360868 | F21: 2004 | G21: Marzo | H21: 40941.92291 | I21: 0.0425215877 | K21: 2016 | L21: 93.11 | M21: 93.11 | N21: =$L$20/L21 -> 0.9456556761 | P21: 2004 | Q21: Marzo | R21: 2004Marzo | S21: 40941.92291 | T21: 18
B22: 2018 | C22: 854008 | D22: 2.564324283 | F22: 2004 | G22: Abril | H22: 40941.92291 | I22: 0.0425215877 | K22: 2017 | L22: 96.92 | M22: 96.92 | N22: 0.9084812216 | P22: 2004 | Q22: Abril | R22: 2004Abril | S22: 40941.92291 | T22: 22
B23: 2019 | C23: 881224 | D23: 3.186855392 | F23: 2004 | G23: Mayo | H23: 40941.92291 | I23: =(H23-H11)/H11 -> 0.0425215877 | K23: 2018 | L23: 100 | M23: 100 | N23: 0.8805 | P23: 2004 | Q23: Mayo | R23: 2004Mayo | S23: 40941.92291 | T23: 20
B24: 2020 | C24: 817900 | D24: -7.185914138 | F24: =F12+1 -> 2004 | G24: Junio | H24: =$C$8/12 -> 40941.92291 | I24: 0.0425215877 | K24: 2019 | L24: 103.8 | M24: 103.8 | N24: 0.848265896 | P24: =P12+1 -> 2004 | Q24: Junio | R24: 2004Junio | S24: 40941.92291 | T24: 19
B25: 2021 | C25: 906243 | D25: 10.80119819 | F25: 2004 | G25: Julio | H25: 40941.92291 | I25: 0.0425215877 | K25: 2020 | L25: 105.48 | M25: 105.48 | N25: =$L$20/L25 -> 0.8347554039 | P25: 2004 | Q25: Julio | R25: 2004Julio | S25: 40941.92291 | T25: 23
B26: 2022 | C26: 972655 | D26: 7.328277294 | F26: 2004 | G26: Agosto | H26: 40941.92291 | I26: 0.0425215877 | K26: 2021 | L26: 111.41 | M26: 111.41 | N26: =$L$20/L26 -> 0.7903240284 | P26: 2004 | Q26: Agosto | R26: 2004Agosto | S26: 40941.92291 | T26: 19
B27: 2023 | C27: 979584 | D27: 0.712380032 | F27: 2004 | G27: Septiembre | H27: 40941.92291 | I27: 0.0425215877 | K27: 2022 | L27: 126.03 | M27: 126.03 | N27: =$L$20/L27 -> 0.6986431802 | P27: 2004 | Q27: Septiembre | R27: 2004Septiembre | S27: 40941.92291 | T27: 22
B28: 2024 | C28: 995240.5133 | D28: 1.598281852 | F28: 2004 | G28: Octubre | H28: 40941.92291 | I28: 0.0425215877 | K28: 2023 | L28: 137.72 | M28: 137.72 | N28: =$L$20/L28 -> 0.6393406913 | P28: 2004 | Q28: Octubre | R28: 2004Octubre | S28: 40941.92291 | T28: 22
B29: 2025 | C29: 1021720.602 | D29: 2.660672335 | F29: 2004 | G29: Noviembre | H29: 40941.92291 | I29: 0.0425215877 | K29: 2024 | L29: 144.88 | M29: 144.88 | N29: =$L$20/L29 -> 0.6077443401 | P29: 2004 | Q29: Noviembre | R29: 2004Noviembre | S29: 40941.92291 | T29: 18
B30: 2026 | C30: 1051904.584 | D30: 2.954230507 | F30: 2004 | G30: Diciembre | H30: 40941.92291 | I30: 0.0425215877 | K30: 2025 | L30: =L29*(1+0.0452236352692621) -> 151.4320003 | M30: 149.4499026 | N30: 0.5814490982 | P30: 2004 | Q30: Diciembre | R30: 2004Diciembre | S30: 40941.92291 | T30: 21
B31: Fuente: Política Macro MHCP | F31: 2005 | G31: Enero | H31: =$D$34/3 -> 42101.27991 | I31: 0.02831711144 | K31: 2026 | L31: =L30*(1+0.0315426739997595) -> 156.2085705 | M31: 153.9333997 | N31: 0.5636694563 | P31: 2005 | Q31: Enero | R31: 2005Enero | S31: 42101.27991 | T31: 20
F32: 2005 | G32: Febrero | H32: =$D$34/3 -> 42101.27991 | I32: 0.02831711144 | K32: 2027 | L32: =L31*(1+$L$4) -> 160.8948276 | M32: 158.5514017 | N32: =$L$20/L32 -> 0.5472518993 | P32: 2005 | Q32: Febrero | R32: 2005Febrero | S32: 42101.27991 | T32: 20
B33: Año | C33: Trimestre | D33: PIB Interno Real ($ Millones de 2015) | F33: 2005 | G33: Marzo | H33: =$D$34/3 -> 42101.27991 | I33: 0.02831711144 | K33: 2028 | L33: =L32*(1+$L$4) -> 165.7216724 | M33: 163.3079437 | N33: 0.5313125236 | P33: 2005 | Q33: Marzo | R33: 2005Marzo | S33: 42101.27991 | T33: 20
B34: 2005 | C34: I | D34: 126303.8397 | F34: 2005 | G34: Abril | H34: =$D$35/3 -> 42920.20559 | I34: 0.04831924188 | K34: 2029 | L34: 170.6933226 | M34: 168.207182 | N34: 0.5158374016 | P34: 2005 | Q34: Abril | R34: 2005Abril | S34: 42920.20559 | T34: 22
B35: 2005 | C35: II | D35: 128760.6168 | F35: 2005 | G35: Mayo | H35: =$D$35/3 -> 42920.20559 | I35: 0.04831924188 | K35: 2030 | L35: 175.8141223 | M35: 173.2533975 | N35: 0.5008130112 | P35: 2005 | Q35: Mayo | R35: 2005Mayo | S35: 42920.20559 | T35: 20
B36: 2005 | C36: III | D36: 128746.263 | F36: 2005 | G36: Junio | H36: =$D$35/3 -> 42920.20559 | I36: 0.04831924188 | K36: 2031 | L36: 181.088546 | M36: 178.4509994 | N36: 0.4862262245 | P36: 2005 | Q36: Junio | R36: 2005Junio | S36: 42920.20559 | T36: 21
B37: 2005 | C37: IV | D37: 131042.2804 | F37: 2005 | G37: Julio | H37: =$D$36/3 -> 42915.421 | I37: 0.04820237916 | K37: 2032 | L37: 186.5212023 | M37: 183.8045294 | N37: 0.4720642956 | P37: 2005 | Q37: Julio | R37: 2005Julio | S37: 42915.421 | T37: 19
B38: =B34+1 -> 2006 | C38: I | D38: 133975.644 | F38: 2005 | G38: Agosto | H38: =$D$36/3 -> 42915.421 | I38: 0.04820237916 | K38: 2033 | L38: 192.1168384 | M38: 189.3186653 | N38: 0.4583148501 | P38: 2005 | Q38: Agosto | R38: 2005Agosto | S38: 42915.421 | T38: 22
B39: =B35+1 -> 2006 | C39: II | D39: 136054.5233 | F39: 2005 | G39: Septiembre | H39: =$D$36/3 -> 42915.421 | I39: 0.04820237916 | K39: 2034 | L39: 197.8803436 | M39: 194.9982253 | N39: 0.4449658739 | P39: 2005 | Q39: Septiembre | R39: 2005Septiembre | S39: 42915.421 | T39: 22
B40: 2006 | C40: III | D40: 138623.81 | F40: 2005 | G40: Octubre | H40: =$D$37/3 -> 43680.76013 | I40: 0.06689566641 | K40: 2035 | L40: 203.8167539 | M40: 200.848172 | N40: =$L$20/L40 -> 0.4320057028 | P40: 2005 | Q40: Octubre | R40: 2005Octubre | S40: 43680.76013 | T40: 20
B41: 2006 | C41: IV | D41: 140781.0228 | F41: 2005 | G41: Noviembre | H41: =$D$37/3 -> 43680.76013 | I41: 0.06689566641 | K41: 2036 | L41: 209.9312565 | M41: 206.8736172 | N41: 0.4194230124 | P41: 2005 | Q41: Noviembre | R41: 2005Noviembre | S41: 43680.76013 | T41: 20
B42: 2007 | C42: I | D42: 143081.2683 | F42: 2005 | G42: Diciembre | H42: =$D$37/3 -> 43680.76013 | I42: 0.06689566641 | K42: 2037 | L42: 216.2291942 | M42: 213.0798257 | N42: 0.4072068082 | P42: 2005 | Q42: Diciembre | R42: 2005Diciembre | S42: 43680.76013 | T42: 22
B43: 2007 | C43: II | D43: 145246.0084 | F43: 2006 | G43: Enero | H43: =$D$38/3 -> 44658.54799 | I43: 0.06074086327 | K43: 2038 | L43: 222.71607 | M43: 219.4722205 | N43: 0.3953464157 | P43: 2006 | Q43: Enero | R43: 2006Enero | S43: 44658.54799 | T43: 21
B44: 2007 | C44: III | D44: 148163.7641 | F44: 2006 | G44: Febrero | H44: =$D$38/3 -> 44658.54799 | I44: 0.06074086327 | K44: 2039 | L44: 229.3975521 | M44: 226.0563871 | N44: 0.3838314716 | P44: 2006 | Q44: Febrero | R44: 2006Febrero | S44: 44658.54799 | T44: 20
B45: 2007 | C45: IV | D45: 149965.9593 | F45: 2006 | G45: Marzo | H45: =$D$38/3 -> 44658.54799 | I45: 0.06074086327 | K45: 2040 | L45: 236.2794787 | M45: 232.8380787 | N45: 0.3726519142 | P45: 2006 | Q45: Marzo | R45: 2006Marzo | S45: 44658.54799 | T45: 22
B46: 2008 | C46: I | D46: 150969.3783 | F46: 2006 | G46: Abril | H46: =$D$39/3 -> 45351.50775 | I46: 0.05664702976 | K46: 2041 | L46: 243.367863 | M46: 239.823221 | N46: 0.3617979749 | P46: 2006 | Q46: Abril | R46: 2006Abril | S46: 45351.50775 | T46: 18
B47: 2008 | C47: II | D47: 151290.893 | F47: 2006 | G47: Mayo | H47: =$D$39/3 -> 45351.50775 | I47: 0.05664702976 | K47: 2042 | L47: 250.6688989 | M47: 247.0179177 | N47: 0.3512601698 | P47: 2006 | Q47: Mayo | R47: 2006Mayo | S47: 45351.50775 | T47: 21
B48: 2008 | C48: III | D48: 153013.0751 | F48: 2006 | G48: Junio | H48: =$D$39/3 -> 45351.50775 | I48: 0.05664702976 | K48: 2043 | L48: 258.1889659 | M48: 254.4284552 | N48: 0.3410292911 | P48: 2006 | Q48: Junio | R48: 2006Junio | S48: 45351.50775 | T48: 20
B49: 2008 | C49: IV | D49: 150439.6536 | F49: 2006 | G49: Julio | H49: =$D$40/3 -> 46207.93666 | I49: 0.07672103813 | K49: 2044 | L49: 265.9346349 | M49: 262.0613089 | N49: 0.3310963991 | P49: 2006 | Q49: Julio | R49: 2006Julio | S49: 46207.93666 | T49: 19
B50: 2009 | C50: I | D50: 150708.0858 | F50: 2006 | G50: Agosto | H50: =$D$40/3 -> 46207.93666 | I50: 0.07672103813 | K50: 2045 | L50: 273.9126739 | M50: 269.9231481 | N50: 0.3214528147 | P50: 2006 | Q50: Agosto | R50: 2006Agosto | S50: 46207.93666 | T50: 21
B51: 2009 | C51: II | D51: 152585.221 | F51: 2006 | G51: Septiembre | H51: =$D$40/3 -> 46207.93666 | I51: 0.07672103813 | K51: 2046 | L51: 282.1300541 | M51: 278.0208426 | N51: 0.3120901113 | P51: 2006 | Q51: Septiembre | R51: 2006Septiembre | S51: 46207.93666 | T51: 22
B52: 2009 | C52: III | D52: 154064.7739 | F52: 2006 | G52: Octubre | H52: =$D$41/3 -> 46927.0076 | I52: 0.07431755909 | K52: 2047 | L52: 290.5939557 | M52: 286.3614678 | N52: 0.3030001081 | P52: 2006 | Q52: Octubre | R52: 2006Octubre | S52: 46927.0076 | T52: 21
B53: 2009 | C53: IV | D53: 155257.9193 | F53: 2006 | G53: Noviembre | H53: =$D$41/3 -> 46927.0076 | I53: 0.07431755909 | K53: 2048 | L53: 299.3117744 | M53: 294.9523119 | N53: 0.2941748622 | P53: 2006 | Q53: Noviembre | R53: 2006Noviembre | S53: 46927.0076 | T53: 20
B54: 2010 | C54: I | D54: 156579.979 | F54: 2006 | G54: Diciembre | H54: =$D$41/3 -> 46927.0076 | I54: 0.07431755909 | K54: 2049 | L54: 308.2911277 | M54: 303.8008812 | N54: 0.2856066623 | P54: 2006 | Q54: Diciembre | R54: 2006Diciembre | S54: 46927.0076 | T54: 19
B55: 2010 | C55: II | D55: 159309.648 | F55: 2007 | G55: Enero | H55: =$D$42/3 -> 47693.75609 | I55: 0.06796477342 | K55: 2050 | L55: 317.5398615 | M55: 312.9149077 | N55: 0.2772880217 | P55: 2007 | Q55: Enero | R55: 2007Enero | S55: 47693.75609 | T55: 21
B56: 2010 | C56: III | D56: 160450.1103 | F56: 2007 | G56: Febrero | H56: =$D$42/3 -> 47693.75609 | I56: 0.06796477342 | K56: 2051 | L56: 327.0660573 | M56: 322.3023549 | N56: 0.2692116715 | P56: 2007 | Q56: Febrero | R56: 2007Febrero | S56: 47693.75609 | T56: 20
B57: 2010 | C57: IV | D57: 163811.2627 | F57: 2007 | G57: Marzo | H57: =$D$42/3 -> 47693.75609 | I57: 0.06796477342 | P57: 2007 | Q57: Marzo | R57: 2007Marzo | S57: 47693.75609 | T57: 22
B58: 2011 | C58: I | D58: 167131.9679 | F58: 2007 | G58: Abril | H58: =$D$43/3 -> 48415.33614 | I58: 0.06755736548 | P58: 2007 | Q58: Abril | R58: 2007Abril | S58: 48415.33614 | T58: 19
B59: 2011 | C59: II | D59: 169849.0688 | F59: 2007 | G59: Mayo | H59: =$D$43/3 -> 48415.33614 | I59: 0.06755736548 | P59: 2007 | Q59: Mayo | R59: 2007Mayo | S59: 48415.33614 | T59: 21
B60: 2011 | C60: III | D60: 173288.4674 | F60: 2007 | G60: Junio | H60: =$D$43/3 -> 48415.33614 | I60: 0.06755736548 | P60: 2007 | Q60: Junio | R60: 2007Junio | S60: 48415.33614 | T60: 20
B61: 2011 | C61: IV | D61: 174358.496 | F61: 2007 | G61: Julio | H61: =$D$44/3 -> 49387.92136 | I61: 0.06881901531 | P61: 2007 | Q61: Julio | R61: 2007Julio | S61: 49387.92136 | T61: 20
B62: 2012 | C62: I | D62: 177193.6093 | F62: 2007 | G62: Agosto | H62: =$D$44/3 -> 49387.92136 | I62: 0.06881901531 | P62: 2007 | Q62: Agosto | R62: 2007Agosto | S62: 49387.92136 | T62: 21
B63: 2012 | C63: II | D63: 177894.9818 | F63: 2007 | G63: Septiembre | H63: =$D$44/3 -> 49387.92136 | I63: 0.06881901531 | P63: 2007 | Q63: Septiembre | R63: 2007Septiembre | S63: 49387.92136 | T63: 20
B64: 2012 | C64: III | D64: 177076.008 | F64: 2007 | G64: Octubre | H64: =$D$45/3 -> 49988.65309 | I64: 0.06524271722 | P64: 2007 | Q64: Octubre | R64: 2007Octubre | S64: 49988.65309 | T64: 22
B65: 2012 | C65: IV | D65: 179250.4009 | F65: 2007 | G65: Noviembre | H65: =$D$45/3 -> 49988.65309 | I65: 0.06524271722 | P65: 2007 | Q65: Noviembre | R65: 2007Noviembre | S65: 49988.65309 | T65: 20
B66: 2013 | C66: I | D66: 182025.6414 | F66: 2007 | G66: Diciembre | H66: =$D$45/3 -> 49988.65309 | I66: 0.06524271722 | P66: 2007 | Q66: Diciembre | R66: 2007Diciembre | S66: 49988.65309 | T66: 20
B67: 2013 | C67: II | D67: 186995.7812 | F67: 2008 | G67: Enero | H67: =$D$46/3 -> 50323.1261 | I67: 0.05513027755 | P67: 2008 | Q67: Enero | R67: 2008Enero | S67: 50323.1261 | T67: 21
B68: 2013 | C68: III | D68: 188122.4258 | F68: 2008 | G68: Febrero | H68: =$D$46/3 -> 50323.1261 | I68: 0.05513027755 | P68: 2008 | Q68: Febrero | R68: 2008Febrero | S68: 50323.1261 | T68: 20
B69: 2013 | C69: IV | D69: 190795.1516 | F69: 2008 | G69: Marzo | H69: =$D$46/3 -> 50323.1261 | I69: 0.05513027755 | P69: 2008 | Q69: Marzo | R69: 2008Marzo | S69: 50323.1261 | T69: 18
B70: 2014 | C70: I | D70: 193501.1188 | F70: 2008 | G70: Abril | H70: =$D$47/3 -> 50430.29766 | I70: 0.04161824915 | P70: 2008 | Q70: Abril | R70: 2008Abril | S70: 50430.29766 | T70: 22
B71: 2014 | C71: II | D71: 194132.296 | F71: 2008 | G71: Mayo | H71: =$D$47/3 -> 50430.29766 | I71: 0.04161824915 | P71: 2008 | Q71: Mayo | R71: 2008Mayo | S71: 50430.29766 | T71: 20
B72: 2014 | C72: III | D72: 195992.5068 | F72: 2008 | G72: Junio | H72: =$D$47/3 -> 50430.29766 | I72: 0.04161824915 | P72: 2008 | Q72: Junio | R72: =CONCATENATE(P72,Q72) -> 2008Junio | S72: 50430.29766 | T72: 19
B73: 2014 | C73: IV | D73: 197963.0784 | F73: 2008 | G73: Julio | H73: =$D$48/3 -> 51004.35836 | I73: 0.03272939948 | P73: 2008 | Q73: Julio | R73: 2008Julio | S73: 51004.35836 | T73: 23
B74: 2015 | C74: I | D74: 199136.3645 | F74: 2008 | G74: Agosto | H74: =$D$48/3 -> 51004.35836 | I74: 0.03272939948 | P74: 2008 | Q74: Agosto | R74: 2008Agosto | S74: 51004.35836 | T74: 19
B75: 2015 | C75: II | D75: 200860.9477 | F75: 2008 | G75: Septiembre | H75: =$D$48/3 -> 51004.35836 | I75: 0.03272939948 | P75: 2008 | Q75: Septiembre | R75: 2008Septiembre | S75: 51004.35836 | T75: 22
B76: 2015 | C76: III | D76: 202672.3264 | F76: 2008 | G76: Octubre | H76: =$D$49/3 -> 50146.55121 | I76: 0.003158679361 | P76: 2008 | Q76: Octubre | R76: 2008Octubre | S76: 50146.55121 | T76: 22
B77: 2015 | C77: IV | D77: 202022.3614 | F77: 2008 | G77: Noviembre | H77: =$D$49/3 -> 50146.55121 | I77: 0.003158679361 | P77: 2008 | Q77: Noviembre | R77: 2008Noviembre | S77: 50146.55121 | T77: 18
B78: 2016 | C78: I | D78: 204843.6209 | F78: 2008 | G78: Diciembre | H78: =$D$49/3 -> 50146.55121 | I78: 0.003158679361 | P78: 2008 | Q78: Diciembre | R78: 2008Diciembre | S78: 50146.55121 | T78: 21
B79: 2016 | C79: II | D79: 204471.8069 | F79: 2009 | G79: Enero | H79: =$D$50/3 -> 50236.02859 | I79: -0.001730765132 | P79: 2009 | Q79: Enero | R79: 2009Enero | S79: 50236.02859 | T79: 20
B80: 2016 | C80: III | D80: 205435.4288 | F80: 2009 | G80: Febrero | H80: =$D$50/3 -> 50236.02859 | I80: -0.001730765132 | P80: 2009 | Q80: Febrero | R80: 2009Febrero | S80: 50236.02859 | T80: 20
B81: 2016 | C81: IV | D81: 206738.1434 | F81: 2009 | G81: Marzo | H81: =$D$50/3 -> 50236.02859 | I81: -0.001730765132 | P81: 2009 | Q81: Marzo | R81: 2009Marzo | S81: 50236.02859 | T81: 21
B82: 2017 | C82: I | D82: 206581.7509 | F82: 2009 | G82: Abril | H82: =$D$51/3 -> 50861.74034 | I82: 0.008555227783 | P82: 2009 | Q82: Abril | R82: 2009Abril | S82: 50861.74034 | T82: 20
B83: 2017 | C83: II | D83: 207717.3715 | F83: 2009 | G83: Mayo | H83: =$D$51/3 -> 50861.74034 | I83: 0.008555227783 | P83: 2009 | Q83: Mayo | R83: 2009Mayo | S83: 50861.74034 | T83: 19
B84: 2017 | C84: III | D84: 208663.2477 | F84: =F72+1 -> 2009 | G84: Junio | H84: =$D$51/3 -> 50861.74034 | I84: =(H84-H72)/H72 -> 0.008555227783 | P84: =P72+1 -> 2009 | Q84: Junio | R84: 2009Junio | S84: 50861.74034 | T84: 19
B85: 2017 | C85: IV | D85: 209693.63 | F85: 2009 | G85: Julio | H85: =$D$52/3 -> 51354.92465 | I85: 0.006873261377 | P85: 2009 | Q85: Julio | R85: 2009Julio | S85: 51354.92465 | T85: 22
B86: 2018 | C86: I | D86: 211004.1087 | F86: 2009 | G86: Agosto | H86: =$D$52/3 -> 51354.92465 | I86: 0.006873261377 | P86: 2009 | Q86: Agosto | R86: 2009Agosto | S86: 51354.92465 | T86: 19
B87: 2018 | C87: II | D87: 212652.2192 | F87: 2009 | G87: Septiembre | H87: =$D$52/3 -> 51354.92465 | I87: 0.006873261377 | P87: 2009 | Q87: Septiembre | R87: 2009Septiembre | S87: 51354.92465 | T87: 22
B88: 2018 | C88: III | D88: 214457.9357 | F88: 2009 | G88: Octubre | H88: =$D$53/3 -> 51752.63976 | I88: 0.0320278963 | P88: 2009 | Q88: Octubre | R88: 2009Octubre | S88: 51752.63976 | T88: 21
B89: 2018 | C89: IV | D89: 215893.7364 | F89: 2009 | G89: Noviembre | H89: =$D$53/3 -> 51752.63976 | I89: 0.0320278963 | P89: 2009 | Q89: Noviembre | R89: 2009Noviembre | S89: 51752.63976 | T89: 19
B90: 2019 | C90: I | D90: 217701.9884 | F90: 2009 | G90: Diciembre | H90: =$D$53/3 -> 51752.63976 | I90: 0.0320278963 | P90: 2009 | Q90: Diciembre | R90: 2009Diciembre | S90: 51752.63976 | T90: 21
B91: 2019 | C91: II | D91: 219776.7651 | F91: 2010 | G91: Enero | H91: =$D$54/3 -> 52193.32633 | I91: 0.03896203186 | P91: 2010 | Q91: Enero | R91: 2010Enero | S91: 52193.32633 | T91: 19
B92: 2019 | C92: III | D92: 220987.2199 | F92: 2010 | G92: Febrero | H92: =$D$54/3 -> 52193.32633 | I92: 0.03896203186 | P92: 2010 | Q92: Febrero | R92: 2010Febrero | S92: 52193.32633 | T92: 20
B93: 2019 | C93: IV | D93: 222758.0266 | F93: 2010 | G93: Marzo | H93: =$D$54/3 -> 52193.32633 | I93: 0.03896203186 | P93: 2010 | Q93: Marzo | R93: 2010Marzo | S93: 52193.32633 | T93: 22
B94: 2020 | C94: I | D94: 218692.1711 | F94: 2010 | G94: Abril | H94: =$D$55/3 -> 53103.21601 | I94: 0.04406997587 | P94: 2010 | Q94: Abril | R94: 2010Abril | S94: 53103.21601 | T94: 20
B95: 2020 | C95: II | D95: 182769.2096 | F95: 2010 | G95: Mayo | H95: =$D$55/3 -> 53103.21601 | I95: 0.04406997587 | P95: 2010 | Q95: Mayo | R95: 2010Mayo | S95: 53103.21601 | T95: 20
B96: 2020 | C96: III | D96: 200927.066 | F96: 2010 | G96: Junio | H96: =$D$55/3 -> 53103.21601 | I96: 0.04406997587 | P96: 2010 | Q96: Junio | R96: 2010Junio | S96: 53103.21601 | T96: 20
B97: 2020 | C97: IV | D97: 215511.5533 | F97: 2010 | G97: Julio | H97: =$D$56/3 -> 53483.37009 | I97: 0.04144579037 | P97: 2010 | Q97: Julio | R97: 2010Julio | S97: 53483.37009 | T97: 20
B98: 2021 | C98: I | D98: 221847.1218 | F98: 2010 | G98: Agosto | H98: =$D$56/3 -> 53483.37009 | I98: 0.04144579037 | P98: 2010 | Q98: Agosto | R98: 2010Agosto | S98: 53483.37009 | T98: 21
B99: 2021 | C99: II | D99: 216991.7467 | F99: 2010 | G99: Septiembre | H99: =$D$56/3 -> 53483.37009 | I99: 0.04144579037 | P99: 2010 | Q99: Septiembre | R99: 2010Septiembre | S99: 53483.37009 | T99: 22
B100: 2021 | C100: III | D100: 227955.1661 | F100: 2010 | G100: Octubre | H100: =$D$57/3 -> 54603.75423 | I100: 0.05509118934 | P100: 2010 | Q100: Octubre | R100: 2010Octubre | S100: 54603.75423 | T100: 20
B101: 2021 | C101: IV | D101: 239448.9653 | F101: 2010 | G101: Noviembre | H101: =$D$57/3 -> 54603.75423 | I101: 0.05509118934 | P101: 2010 | Q101: Noviembre | R101: 2010Noviembre | S101: 54603.75423 | T101: 20
B102: 2022 | C102: I | D102: 239801.1672 | F102: 2010 | G102: Diciembre | H102: =$D$57/3 -> 54603.75423 | I102: 0.05509118934 | P102: 2010 | Q102: Diciembre | R102: 2010Diciembre | S102: 54603.75423 | T102: 22
B103: 2022 | C103: II | D103: 243227.0384 | F103: 2011 | G103: Enero | H103: =$D$58/3 -> 55710.65595 | I103: 0.06739040925 | P103: 2011 | Q103: Enero | R103: 2011Enero | S103: 55710.65595 | T103: 20
B104: 2022 | C104: III | D104: 245282.5151 | F104: 2011 | G104: Febrero | H104: =$D$58/3 -> 55710.65595 | I104: 0.06739040925 | P104: 2011 | Q104: Febrero | R104: 2011Febrero | S104: 55710.65595 | T104: 20
B105: 2022 | C105: IV | D105: 244344.2792 | F105: 2011 | G105: Marzo | H105: =$D$58/3 -> 55710.65595 | I105: 0.06739040925 | P105: 2011 | Q105: Marzo | R105: 2011Marzo | S105: 55710.65595 | T105: 22
B106: 2023 | C106: I | D106: 245756.4836 | F106: 2011 | G106: Abril | H106: =$D$59/3 -> 56616.35625 | I106: 0.06615682642 | P106: 2011 | Q106: Abril | R106: 2011Abril | S106: 56616.35625 | T106: 19
B107: 2023 | C107: II | D107: 244255.9097 | F107: 2011 | G107: Mayo | H107: =$D$59/3 -> 56616.35625 | I107: 0.06615682642 | P107: 2011 | Q107: Mayo | R107: 2011Mayo | S107: 56616.35625 | T107: 22
B108: 2023 | C108: III | D108: 243880.2205 | F108: 2011 | G108: Junio | H108: =$D$59/3 -> 56616.35625 | I108: 0.06615682642 | P108: 2011 | Q108: Junio | R108: 2011Junio | S108: 56616.35625 | T108: 20
B109: 2023 | C109: IV | D109: 245691.3861 | F109: 2011 | G109: Julio | H109: =$D$60/3 -> 57762.82247 | I109: 0.08001463576 | P109: 2011 | Q109: Julio | R109: 2011Julio | S109: 57762.82247 | T109: 19
B110: 2024 | C110: I | D110: 247028.3125 | F110: 2011 | G110: Agosto | H110: =$D$60/3 -> 57762.82247 | I110: 0.08001463576 | P110: 2011 | Q110: Agosto | R110: 2011Agosto | S110: 57762.82247 | T110: 22
B111: 2024 | C111: II | D111: 247691.8991 | F111: 2011 | G111: Septiembre | H111: =$D$60/3 -> 57762.82247 | I111: 0.08001463576 | P111: 2011 | Q111: Septiembre | R111: 2011Septiembre | S111: 57762.82247 | T111: 22
B112: 2024 | C112: III | D112: 248606.5736 | F112: 2011 | G112: Octubre | H112: =$D$61/3 -> 58119.49866 | I112: 0.06438649638 | P112: 2011 | Q112: Octubre | R112: 2011Octubre | S112: 58119.49866 | T112: 20
B113: 2024 | C113: IV | D113: 251913.7281 | F113: 2011 | G113: Noviembre | H113: =$D$61/3 -> 58119.49866 | I113: 0.06438649638 | P113: 2011 | Q113: Noviembre | R113: 2011Noviembre | S113: 58119.49866 | T113: 20
B114: 2025 | C114: I | D114: 252690.1856 | F114: 2011 | G114: Diciembre | H114: =$D$61/3 -> 58119.49866 | I114: 0.06438649638 | P114: 2011 | Q114: Diciembre | R114: 2011Diciembre | S114: 58119.49866 | T114: 21
B115: 2025 | C115: II | D115: 253960.6625 | F115: 2012 | G115: Enero | H115: =$D$62/3 -> 59064.53644 | I115: 0.06020177706 | P115: 2012 | Q115: Enero | R115: 2012Enero | S115: 59064.53644 | T115: 21
B116: Fuente: Banco de la Republica | F116: 2012 | G116: Febrero | H116: =$D$62/3 -> 59064.53644 | I116: 0.06020177706 | P116: 2012 | Q116: Febrero | R116: 2012Febrero | S116: 59064.53644 | T116: 21
F117: 2012 | G117: Marzo | H117: =$D$62/3 -> 59064.53644 | I117: 0.06020177706 | P117: 2012 | Q117: Marzo | R117: 2012Marzo | S117: 59064.53644 | T117: 22
F118: 2012 | G118: Abril | H118: =$D$63/3 -> 59298.32728 | I118: 0.04737095777 | P118: 2012 | Q118: Abril | R118: 2012Abril | S118: 59298.32728 | T118: 19
F119: 2012 | G119: Mayo | H119: =$D$63/3 -> 59298.32728 | I119: 0.04737095777 | P119: 2012 | Q119: Mayo | R119: 2012Mayo | S119: 59298.32728 | T119: 21
F120: 2012 | G120: Junio | H120: =$D$63/3 -> 59298.32728 | I120: 0.04737095777 | P120: 2012 | Q120: Junio | R120: 2012Junio | S120: 59298.32728 | T120: 19
F121: 2012 | G121: Julio | H121: =$D$64/3 -> 59025.33599 | I121: 0.02185685304 | P121: 2012 | Q121: Julio | R121: 2012Julio | S121: 59025.33599 | T121: 20
F122: 2012 | G122: Agosto | H122: =$D$64/3 -> 59025.33599 | I122: 0.02185685304 | P122: 2012 | Q122: Agosto | R122: 2012Agosto | S122: 59025.33599 | T122: 21
F123: 2012 | G123: Septiembre | H123: =$D$64/3 -> 59025.33599 | I123: 0.02185685304 | P123: 2012 | Q123: Septiembre | R123: 2012Septiembre | S123: 59025.33599 | T123: 20
F124: 2012 | G124: Octubre | H124: =$D$65/3 -> 59750.13362 | I124: 0.02805659039 | P124: 2012 | Q124: Octubre | R124: 2012Octubre | S124: 59750.13362 | T124: 22
F125: 2012 | G125: Noviembre | H125: =$D$65/3 -> 59750.13362 | I125: 0.02805659039 | P125: 2012 | Q125: Noviembre | R125: 2012Noviembre | S125: 59750.13362 | T125: 20
F126: 2012 | G126: Diciembre | H126: =$D$65/3 -> 59750.13362 | I126: 0.02805659039 | P126: 2012 | Q126: Diciembre | R126: 2012Diciembre | S126: 59750.13362 | T126: 20
F127: 2013 | G127: Enero | H127: =$D$66/3 -> 60675.21379 | I127: 0.02726978729 | P127: 2013 | Q127: Enero | R127: 2013Enero | S127: 60675.21379 | T127: 21
F128: 2013 | G128: Febrero | H128: =$D$66/3 -> 60675.21379 | I128: 0.02726978729 | P128: 2013 | Q128: Febrero | R128: 2013Febrero | S128: 60675.21379 | T128: 20
F129: 2013 | G129: Marzo | H129: =$D$66/3 -> 60675.21379 | I129: 0.02726978729 | P129: 2013 | Q129: Marzo | R129: 2013Marzo | S129: 60675.21379 | T129: 18
F130: 2013 | G130: Abril | H130: =$D$67/3 -> 62331.92707 | I130: 0.05115826935 | P130: 2013 | Q130: Abril | R130: 2013Abril | S130: 62331.92707 | T130: 22
F131: 2013 | G131: Mayo | H131: =$D$67/3 -> 62331.92707 | I131: 0.05115826935 | P131: 2013 | Q131: Mayo | R131: 2013Mayo | S131: 62331.92707 | T131: 21
F132: 2013 | G132: Junio | H132: =$D$67/3 -> 62331.92707 | I132: 0.05115826935 | P132: 2013 | Q132: Junio | R132: 2013Junio | S132: 62331.92707 | T132: 18
F133: 2013 | G133: Julio | H133: =$D$68/3 -> 62707.47527 | I133: 0.06238235191 | P133: 2013 | Q133: Julio | R133: 2013Julio | S133: 62707.47527 | T133: 22
F134: 2013 | G134: Agosto | H134: =$D$68/3 -> 62707.47527 | I134: 0.06238235191 | P134: 2013 | Q134: Agosto | R134: 2013Agosto | S134: 62707.47527 | T134: 20
F135: 2013 | G135: Septiembre | H135: =$D$68/3 -> 62707.47527 | I135: 0.06238235191 | P135: 2013 | Q135: Septiembre | R135: 2013Septiembre | S135: 62707.47527 | T135: 21
F136: 2013 | G136: Octubre | H136: =$D$69/3 -> 63598.38387 | I136: 0.06440571774 | P136: 2013 | Q136: Octubre | R136: =CONCATENATE(P136,Q136) -> 2013Octubre | S136: 63598.38387 | T136: 22
F137: 2013 | G137: Noviembre | H137: =$D$69/3 -> 63598.38387 | I137: 0.06440571774 | P137: 2013 | Q137: Noviembre | R137: 2013Noviembre | S137: 63598.38387 | T137: 20
F138: 2013 | G138: Diciembre | H138: =$D$69/3 -> 63598.38387 | I138: 0.06440571774 | P138: 2013 | Q138: Diciembre | R138: 2013Diciembre | S138: 63598.38387 | T138: 21
F139: 2014 | G139: Enero | H139: =$D$70/3 -> 64500.37294 | I139: 0.06304319205 | P139: 2014 | Q139: Enero | R139: 2014Enero | S139: 64500.37294 | T139: 21
F140: 2014 | G140: Febrero | H140: =$D$70/3 -> 64500.37294 | I140: 0.06304319205 | P140: 2014 | Q140: Febrero | R140: 2014Febrero | S140: 64500.37294 | T140: 20
F141: 2014 | G141: Marzo | H141: =$D$70/3 -> 64500.37294 | I141: 0.06304319205 | P141: 2014 | Q141: Marzo | R141: 2014Marzo | S141: 64500.37294 | T141: 20
F142: 2014 | G142: Abril | H142: =$D$71/3 -> 64710.76533 | I142: 0.03816404151 | P142: 2014 | Q142: Abril | R142: 2014Abril | S142: 64710.76533 | T142: 20
F143: 2014 | G143: Mayo | H143: =$D$71/3 -> 64710.76533 | I143: 0.03816404151 | P143: 2014 | Q143: Mayo | R143: 2014Mayo | S143: 64710.76533 | T143: 21
F144: 2014 | G144: Junio | H144: =$D$71/3 -> 64710.76533 | I144: 0.03816404151 | P144: 2014 | Q144: Junio | R144: 2014Junio | S144: 64710.76533 | T144: 18
F145: 2014 | G145: Julio | H145: =$D$72/3 -> 65330.8356 | I145: 0.04183488991 | P145: 2014 | Q145: Julio | R145: 2014Julio | S145: 65330.8356 | T145: 23
F146: 2014 | G146: Agosto | H146: =$D$72/3 -> 65330.8356 | I146: 0.04183488991 | P146: 2014 | Q146: Agosto | R146: 2014Agosto | S146: 65330.8356 | T146: 19
F147: 2014 | G147: Septiembre | H147: =$D$72/3 -> 65330.8356 | I147: 0.04183488991 | P147: 2014 | Q147: Septiembre | R147: 2014Septiembre | S147: 65330.8356 | T147: 22
F148: =F136+1 -> 2014 | G148: Octubre | H148: =$D$73/3 -> 65987.6928 | I148: =(H148-H136)/H136 -> 0.0375687052 | P148: =P136+1 -> 2014 | Q148: Octubre | R148: 2014Octubre | S148: 65987.6928 | T148: 22
F149: 2014 | G149: Noviembre | H149: =$D$73/3 -> 65987.6928 | I149: 0.0375687052 | P149: 2014 | Q149: Noviembre | R149: 2014Noviembre | S149: 65987.6928 | T149: 18
F150: 2014 | G150: Diciembre | H150: =$D$73/3 -> 65987.6928 | I150: 0.0375687052 | P150: 2014 | Q150: Diciembre | R150: 2014Diciembre | S150: 65987.6928 | T150: 21
F151: 2015 | G151: Enero | H151: =$D$74/3 -> 66378.78817 | I151: 0.02912254829 | P151: 2015 | Q151: Enero | R151: 2015Enero | S151: 66378.78817 | T151: 20
F152: 2015 | G152: Febrero | H152: =$D$74/3 -> 66378.78817 | I152: 0.02912254829 | P152: 2015 | Q152: Febrero | R152: 2015Febrero | S152: 66378.78817 | T152: 20
F153: 2015 | G153: Marzo | H153: =$D$74/3 -> 66378.78817 | I153: 0.02912254829 | P153: 2015 | Q153: Marzo | R153: 2015Marzo | S153: 66378.78817 | T153: 21
F154: 2015 | G154: Abril | H154: =$D$75/3 -> 66953.64923 | I154: 0.03466013563 | P154: 2015 | Q154: Abril | R154: 2015Abril | S154: 66953.64923 | T154: 20
F155: 2015 | G155: Mayo | H155: =$D$75/3 -> 66953.64923 | I155: 0.03466013563 | P155: 2015 | Q155: Mayo | R155: 2015Mayo | S155: 66953.64923 | T155: 19
F156: 2015 | G156: Junio | H156: =$D$75/3 -> 66953.64923 | I156: 0.03466013563 | P156: 2015 | Q156: Junio | R156: 2015Junio | S156: 66953.64923 | T156: 19
F157: 2015 | G157: Julio | H157: =$D$76/3 -> 67557.44214 | I157: 0.03408201544 | P157: 2015 | Q157: Julio | R157: 2015Julio | S157: 67557.44214 | T157: 22
F158: 2015 | G158: Agosto | H158: =$D$76/3 -> 67557.44214 | I158: 0.03408201544 | P158: 2015 | Q158: Agosto | R158: 2015Agosto | S158: 67557.44214 | T158: 19
F159: 2015 | G159: Septiembre | H159: =$D$76/3 -> 67557.44214 | I159: 0.03408201544 | P159: 2015 | Q159: Septiembre | R159: 2015Septiembre | S159: 67557.44214 | T159: 22
F160: 2015 | G160: Octubre | H160: =$D$77/3 -> 67340.78712 | I160: 0.02050525283 | P160: 2015 | Q160: Octubre | R160: 2015Octubre | S160: 67340.78712 | T160: 21
F161: 2015 | G161: Noviembre | H161: =$D$77/3 -> 67340.78712 | I161: 0.02050525283 | P161: 2015 | Q161: Noviembre | R161: 2015Noviembre | S161: 67340.78712 | T161: 19
F162: 2015 | G162: Diciembre | H162: =$D$77/3 -> 67340.78712 | I162: 0.02050525283 | P162: 2015 | Q162: Diciembre | R162: 2015Diciembre | S162: 67340.78712 | T162: 21
F163: 2016 | G163: Enero | H163: =$D$78/3 -> 68281.20697 | I163: 0.02866004109 | P163: 2016 | Q163: Enero | R163: 2016Enero | S163: 68281.20697 | T163: 19
F164: 2016 | G164: Febrero | H164: =$D$78/3 -> 68281.20697 | I164: 0.02866004109 | P164: 2016 | Q164: Febrero | R164: 2016Febrero | S164: 68281.20697 | T164: 21
F165: 2016 | G165: Marzo | H165: =$D$78/3 -> 68281.20697 | I165: 0.02866004109 | P165: 2016 | Q165: Marzo | R165: 2016Marzo | S165: 68281.20697 | T165: 20
F166: 2016 | G166: Abril | H166: =$D$79/3 -> 68157.26897 | I166: 0.01797691024 | P166: 2016 | Q166: Abril | R166: 2016Abril | S166: 68157.26897 | T166: 21
F167: 2016 | G167: Mayo | H167: =$D$79/3 -> 68157.26897 | I167: 0.01797691024 | P167: 2016 | Q167: Mayo | R167: 2016Mayo | S167: 68157.26897 | T167: 20
F168: 2016 | G168: Junio | H168: =$D$79/3 -> 68157.26897 | I168: 0.01797691024 | P168: 2016 | Q168: Junio | R168: 2016Junio | S168: 68157.26897 | T168: 21
F169: 2016 | G169: Julio | H169: =$D$80/3 -> 68478.47626 | I169: 0.01363334804 | P169: 2016 | Q169: Julio | R169: 2016Julio | S169: 68478.47626 | T169: 19
F170: 2016 | G170: Agosto | H170: =$D$80/3 -> 68478.47626 | I170: 0.01363334804 | P170: 2016 | Q170: Agosto | R170: 2016Agosto | S170: 68478.47626 | T170: 22
F171: 2016 | G171: Septiembre | H171: =$D$80/3 -> 68478.47626 | I171: 0.01363334804 | P171: 2016 | Q171: Septiembre | R171: 2016Septiembre | S171: 68478.47626 | T171: 22
F172: 2016 | G172: Octubre | H172: =$D$81/3 -> 68912.71446 | I172: 0.02334287148 | P172: 2016 | Q172: Octubre | R172: 2016Octubre | S172: 68912.71446 | T172: 20
F173: 2016 | G173: Noviembre | H173: =$D$81/3 -> 68912.71446 | I173: 0.02334287148 | P173: 2016 | Q173: Noviembre | R173: 2016Noviembre | S173: 68912.71446 | T173: 20
F174: 2016 | G174: Diciembre | H174: =$D$81/3 -> 68912.71446 | I174: 0.02334287148 | P174: 2016 | Q174: Diciembre | R174: 2016Diciembre | S174: 68912.71446 | T174: 22
F175: 2017 | G175: Enero | H175: =$D$82/3 -> 68860.58362 | I175: 0.008485155381 | P175: 2017 | Q175: Enero | R175: 2017Enero | S175: 68860.58362 | T175: 21
F176: 2017 | G176: Febrero | H176: =$D$82/3 -> 68860.58362 | I176: 0.008485155381 | P176: 2017 | Q176: Febrero | R176: 2017Febrero | S176: 68860.58362 | T176: 20
F177: 2017 | G177: Marzo | H177: =$D$82/3 -> 68860.58362 | I177: 0.008485155381 | P177: 2017 | Q177: Marzo | R177: 2017Marzo | S177: 68860.58362 | T177: 22
F178: 2017 | G178: Abril | H178: =$D$83/3 -> 69239.12384 | I178: 0.01587291987 | P178: 2017 | Q178: Abril | R178: 2017Abril | S178: 69239.12384 | T178: 18
F179: 2017 | G179: Mayo | H179: =$D$83/3 -> 69239.12384 | I179: 0.01587291987 | P179: 2017 | Q179: Mayo | R179: 2017Mayo | S179: 69239.12384 | T179: 21
F180: 2017 | G180: Junio | H180: =$D$83/3 -> 69239.12384 | I180: 0.01587291987 | P180: 2017 | Q180: Junio | R180: 2017Junio | S180: 69239.12384 | T180: 20
F181: 2017 | G181: Julio | H181: =$D$84/3 -> 69554.41589 | I181: 0.01571208474 | P181: 2017 | Q181: Julio | R181: 2017Julio | S181: 69554.41589 | T181: 19
F182: 2017 | G182: Agosto | H182: =$D$84/3 -> 69554.41589 | I182: 0.01571208474 | P182: 2017 | Q182: Agosto | R182: 2017Agosto | S182: 69554.41589 | T182: 21
F183: 2017 | G183: Septiembre | H183: =$D$84/3 -> 69554.41589 | I183: 0.01571208474 | P183: 2017 | Q183: Septiembre | R183: 2017Septiembre | S183: 69554.41589 | T183: 21
F184: 2017 | G184: Octubre | H184: =$D$85/3 -> 69897.87665 | I184: 0.01429579722 | P184: 2017 | Q184: Octubre | R184: 2017Octubre | S184: 69897.87665 | T184: 21
F185: 2017 | G185: Noviembre | H185: =$D$85/3 -> 69897.87665 | I185: 0.01429579722 | P185: 2017 | Q185: Noviembre | R185: 2017Noviembre | S185: 69897.87665 | T185: 20
F186: 2017 | G186: Diciembre | H186: =$D$85/3 -> 69897.87665 | I186: 0.01429579722 | P186: 2017 | Q186: Diciembre | R186: 2017Diciembre | S186: 69897.87665 | T186: 19
F187: 2018 | G187: Enero | H187: =$D$86/3 -> 70334.7029 | I187: 0.02140730159 | P187: 2018 | Q187: Enero | R187: 2018Enero | S187: 70334.7029 | T187: 21
F188: 2018 | G188: Febrero | H188: =$D$86/3 -> 70334.7029 | I188: 0.02140730159 | P188: 2018 | Q188: Febrero | R188: 2018Febrero | S188: 70334.7029 | T188: 20
F189: 2018 | G189: Marzo | H189: =$D$86/3 -> 70334.7029 | I189: 0.02140730159 | P189: 2018 | Q189: Marzo | R189: 2018Marzo | S189: 70334.7029 | T189: 19
F190: 2018 | G190: Abril | H190: =$D$87/3 -> 70884.07307 | I190: 0.02375751072 | P190: 2018 | Q190: Abril | R190: 2018Abril | S190: 70884.07307 | T190: 21
F191: 2018 | G191: Mayo | H191: =$D$87/3 -> 70884.07307 | I191: 0.02375751072 | P191: 2018 | Q191: Mayo | R191: 2018Mayo | S191: 70884.07307 | T191: 21
F192: 2018 | G192: Junio | H192: =$D$87/3 -> 70884.07307 | I192: 0.02375751072 | P192: 2018 | Q192: Junio | R192: 2018Junio | S192: 70884.07307 | T192: 19
F193: 2018 | G193: Julio | H193: =$D$88/3 -> 71485.97856 | I193: 0.02777052544 | P193: 2018 | Q193: Julio | R193: 2018Julio | S193: 71485.97856 | T193: 20
F194: 2018 | G194: Agosto | H194: =$D$88/3 -> 71485.97856 | I194: 0.02777052544 | P194: 2018 | Q194: Agosto | R194: 2018Agosto | S194: 71485.97856 | T194: 21
F195: 2018 | G195: Septiembre | H195: =$D$88/3 -> 71485.97856 | I195: 0.02777052544 | P195: 2018 | Q195: Septiembre | R195: 2018Septiembre | S195: 71485.97856 | T195: 20
F196: 2018 | G196: Octubre | H196: =$D$89/3 -> 71964.5788 | I196: 0.02956745252 | P196: 2018 | Q196: Octubre | R196: 2018Octubre | S196: 71964.5788 | T196: 22
F197: 2018 | G197: Noviembre | H197: =$D$89/3 -> 71964.5788 | I197: 0.02956745252 | P197: 2018 | Q197: Noviembre | R197: 2018Noviembre | S197: 71964.5788 | T197: 20
F198: 2018 | G198: Diciembre | H198: =$D$89/3 -> 71964.5788 | I198: 0.02956745252 | P198: 2018 | Q198: Diciembre | R198: 2018Diciembre | S198: 71964.5788 | T198: 20
F199: 2019 | G199: Enero | H199: =$D$90/3 -> 72567.32945 | I199: 0.03174288736 | P199: 2019 | Q199: Enero | R199: 2019Enero | S199: 72567.32945 | T199: 21
F200: 2019 | G200: Febrero | H200: =$D$90/3 -> 72567.32945 | I200: 0.03174288736 | P200: 2019 | Q200: Febrero | R200: =CONCATENATE(P200,Q200) -> 2019Febrero | S200: 72567.32945 | T200: 20
F201: 2019 | G201: Marzo | H201: =$D$90/3 -> 72567.32945 | I201: 0.03174288736 | P201: 2019 | Q201: Marzo | R201: 2019Marzo | S201: 72567.32945 | T201: 22
F202: 2019 | G202: Abril | H202: =$D$91/3 -> 73258.92172 | I202: 0.03350327577 | P202: 2019 | Q202: Abril | R202: 2019Abril | S202: 73258.92172 | T202: 19
... 560 more rows

Sheet Información Histórica
B3: Año | C3: Mes | D3: Categorías
D4: I | E4: II | F4: III | G4: IV | H4: V | I4: VI | J4: VII | K4: IE | L4: IIE | M4: IIIE | N4: IVE | O4: VE | P4: VIE | Q4: VIIE
C5: Enero
C6: Febrero
C7: Marzo
C8: Abril
C9: Mayo
C10: Junio
C11: Julio
C12: Agosto
C13: Septiembre
C14: Octubre
C15: Noviembre
C16: Diciembre

Sheet Tarifas
R2: =B2 -> 0
B3: Año | C3: Corrientes | R3: Año | S3: Constantes (2015)
C4: I | D4: II | E4: III | F4: IV | G4: V | H4: VI | I4: VII | J4: IE | K4: IIE | L4: IIIE | M4: IVE | N4: VE | O4: VIE | P4: VIIE | S4: I | T4: II | U4: III | V4: IV | W4: V | X4: VI | Y4: VII | Z4: IE | AA4: IIE | AB4: IIIE | AC4: IVE | AD4: VE | AE4: VIE | AF4: VIIE
S5: =MROUND((C5*VLOOKUP($R5,'Supuestos macro'!$K$7:$N$56,4,FALSE)),100) ->  | T5: =MROUND((D5*VLOOKUP($R5,'Supuestos macro'!$K$7:$N$56,4,FALSE)),100) ->  | U5: =MROUND((E5*VLOOKUP($R5,'Supuestos macro'!$K$7:$N$56,4,FALSE)),100) ->  | V5: =MROUND((F5*VLOOKUP($R5,'Supuestos macro'!$K$7:$N$56,4,FALSE)),100) ->  | W5: =MROUND((G5*VLOOKUP($R5,'Supuestos macro'!$K$7:$N$56,4,FALSE)),100) ->  | X5: =MROUND((H5*VLOOKUP($R5,'Supuestos macro'!$K$7:$N$56,4,FALSE)),100) ->  | Y5: =MROUND((I5*VLOOKUP($R5,'Supuestos macro'!$K$7:$N$56,4,FALSE)),100) ->  | Z5: =MROUND((J5*VLOOKUP($R5,'Supuestos macro'!$K$7:$N$56,4,FALSE)),100) ->  | AA5: =MROUND((K5*VLOOKUP($R5,'Supuestos macro'!$K$7:$N$56,4,FALSE)),100) ->  | AB5: =MROUND((L5*VLOOKUP($R5,'Supuestos macro'!$K$7:$N$56,4,FALSE)),100) ->  | AC5: =MROUND((M5*VLOOKUP($R5,'Supuestos macro'!$K$7:$N$56,4,FALSE)),100) ->  | AD5: =MROUND((N5*VLOOKUP($R5,'Supuestos macro'!$K$7:$N$56,4,FALSE)),100) ->  | AE5: =MROUND((O5*VLOOKUP($R5,'Supuestos macro'!$K$7:$N$56,4,FALSE)),100) ->  | AF5: =MROUND((P5*VLOOKUP($R5,'Supuestos macro'!$K$7:$N$56,4,FALSE)),100) -> 

Sheet Paso 1 Y 2 -Alistamiento Datos
F1: Variable Dependiente | T1: Variable Dependiente TPD | AH1: Variable Dependiente suavizada | AV1: Variables Independiente | BZ1: Variable Dependiente | CN1: Variables Independiente - Log Diferencias
A2: Año | B2: Mes | C2: # | D2: Días del Mes | E2: Días Habiles | F2: I | G2: II | H2: III | I2: IV | J2: V | K2: VI | L2: VII | M2: IE | N2: IIE | O2: IIIE | P2: IVE | Q2: VE | R2: VIE | S2: VIIE | T2: I | U2: II | V2: III | W2: IV | X2: V | Y2: VI | Z2: VII | AA2: IE | AB2: IIE | AC2: IIIE | AD2: IVE | AE2: VE | AF2: VIE | AG2: VIIE | AH2: I | AI2: II | AJ2: III | AK2: IV | AL2: V | AM2: VI | AN2: VII | AO2: IE | AP2: IIE | AQ2: IIIE | AR2: IVE | AS2: VE | AT2: VIE | AU2: VIIE | AV2: PIB | AW2: Tarifas | AX2: Tarifas | AY2: Tarifas | AZ2: Tarifas | BA2: Tarifas | BB2: Tarifas | BC2: Tarifas | BD2: Tarifas | BE2: Tarifas | BF2: Tarifas | BG2: Tarifas | BH2: Tarifas | BI2: Tarifas | BJ2: Tarifas | BK2: Proporción Días hábiles | BL2: Dummy | BM2: Dummy | BN2: Dummy | BO2: Dummy | BP2: Dummy | BQ2: Dummy | BR2: Dummy | BS2: Dummy | BT2: Dummy | BU2: Dummy | BV2: Dummy | BW2: Dummy | BX2: Dummy | BY2: Dummy | BZ2: I | CA2: II | CB2: III | CC2: IV | CD2: V | CE2: VI | CF2: VII | CG2: IE | CH2: IIE | CI2: IIIE | CJ2: IVE | CK2: VE | CL2: VIE | CM2: VIIE | CN2: PIB | CO2: Tarifas | CP2: Tarifas | CQ2: Tarifas | CR2: Tarifas | CS2: Tarifas | CT2: Tarifas | CU2: Tarifas | CV2: Tarifas | CW2: Tarifas | CX2: Tarifas | CY2: Tarifas | CZ2: Tarifas | DA2: Tarifas | DB2: Tarifas | DC2: Proporción Días hábiles | DD2: Dummy | DE2: Dummy | DF2: Dummy | DG2: Dummy | DH2: Dummy | DI2: Dummy | DJ2: Dummy | DK2: Dummy | DL2: Dummy | DM2: Dummy | DN2: Dummy | DO2: Dummy | DP2: Dummy | DQ2: Dummy
F4: Mensual | G4: Mensual | H4: Mensual | I4: Mensual | J4: Mensual | K4: Mensual | L4: Mensual | M4: Mensual | N4: Mensual | O4: Mensual | P4: Mensual | Q4: Mensual | R4: Mensual | S4: Mensual | T4: TPD | U4: TPD | V4: TPD | W4: TPD | X4: TPD | Y4: TPD | Z4: TPD | AA4: TPD | AB4: TPD | AC4: TPD | AD4: TPD | AE4: TPD | AF4: TPD | AG4: TPD | AH4: Suavizada | AI4: Suavizada | AJ4: Suavizada | AK4: Suavizada | AL4: Suavizada | AM4: Suavizada | AN4: Suavizada | AO4: Suavizada | AP4: Suavizada | AQ4: Suavizada | AR4: Suavizada | AS4: Suavizada | AT4: Suavizada | AU4: Suavizada | AV4: Mensual | AW4: I | AX4: II | AY4: III | AZ4: IV | BA4: V | BB4: VI | BC4: VII | BD4: IE | BE4: IIE | BF4: IIIE | BG4: IVE | BH4: VE | BI4: VIE | BJ4: VIIE | BL4: I | BM4: II | BN4: III | BO4: IV | BP4: V | BQ4: VI | BR4: VII | BS4: IE | BT4: IIE | BU4: IIIE | BV4: IVE | BW4: VE | BX4: VIE | BY4: VIIE | BZ4: Log diferencias | CA4: Log diferencias | CB4: Log diferencias | CC4: Log diferencias | CD4: Log diferencias | CE4: Log diferencias | CF4: Log diferencias | CG4: Log diferencias | CH4: Log diferencias | CI4: Log diferencias | CJ4: Log diferencias | CK4: Log diferencias | CL4: Log diferencias | CM4: Log diferencias | CN4: Log diferencias | CO4: I | CP4: II | CQ4: III | CR4: IV | CS4: V | CT4: VI | CU4: VII | CV4: IE | CW4: IIE | CX4: IIIE | CY4: IVE | CZ4: VE | DA4: VIE | DB4: VIIE | DD4: I | DE4: II | DF4: III | DG4: IV | DH4: V | DI4: VI | DJ4: VII | DK4: IE | DL4: IIE | DM4: IIIE | DN4: IVE | DO4: VE | DP4: VIE | DQ4: VIIE
B5: Enero
B6: Febrero
B7: Marzo
B8: Abril
B9: Mayo
B10: Junio
B11: Julio
B12: Agosto
B13: Septiembre
B14: Octubre
B15: Noviembre
B16: Diciembre
B17: Enero
B18: Febrero
B19: Marzo
B20: Abril
B21: Mayo
B22: Junio
B23: Julio
B24: Agosto
B25: Septiembre
B26: Octubre
B27: Noviembre
B28: Diciembre
AV3978: =VLOOKUP(_xlfn.CONCAT(A3936,B3936),'Supuestos macro'!$AD$5:$AE$1068,2,FALSE) ->  | AW3978: =AW3977 -> 0 | AX3978: =AX3977 -> 0 | AY3978: =AY3977 -> 0 | AZ3978: =AZ3977 -> 0 | BA3978: =BA3977 -> 0 | BB3978: =BB3977 -> 0 | BC3978: =BC3977 -> 0 | BD3978: =BD3977 -> 0 | BE3978: =BE3977 -> 0 | BF3978: =BF3977 -> 0 | BG3978: =BG3977 -> 0 | BH3978: =BH3977 -> 0 | BI3978: =BI3977 -> 0 | BJ3978: =BJ3977 -> 0 | BK3978: =E3936/D3936 ->  | CN3978: =IFERROR(LN(AV3978)-LN(AV3966),"") ->  | CO3978: =IFERROR(LN(AW3978)-LN(AW3966),0) -> 0 | CP3978: =IFERROR(LN(AX3978)-LN(AX3966),0) -> 0 | CQ3978: =IFERROR(LN(AY3978)-LN(AY3966),0) -> 0 | CR3978: =IFERROR(LN(AZ3978)-LN(AZ3966),0) -> 0 | CS3978: =IFERROR(LN(BA3978)-LN(BA3966),0) -> 0 | CT3978: =IFERROR(LN(BB3978)-LN(BB3966),0) -> 0 | CU3978: =IFERROR(LN(BC3978)-LN(BC3966),0) -> 0 | CV3978: =IFERROR(LN(BD3978)-LN(BD3966),0) -> 0 | CW3978: =IFERROR(LN(BE3978)-LN(BE3966),0) -> 0 | CX3978: =IFERROR(LN(BF3978)-LN(BF3966),0) -> 0 | CY3978: =IFERROR(LN(BG3978)-LN(BG3966),0) -> 0 | CZ3978: =IFERROR(LN(BH3978)-LN(BH3966),0) -> 0 | DA3978: =IFERROR(LN(BI3978)-LN(BI3966),0) -> 0 | DB3978: =IFERROR(LN(BJ3978)-LN(BJ3966),0) -> 0 | DC3978: =IFERROR(LN(BK3978)-LN(BK3966),"") -> 
AV3979: =VLOOKUP(_xlfn.CONCAT(A3937,B3937),'Supuestos macro'!$AD$5:$AE$1068,2,FALSE) ->  | AW3979: 0 | AX3979: 0 | AY3979: 0 | AZ3979: 0 | BA3979: 0 | BB3979: 0 | BC3979: 0 | BD3979: 0 | BE3979: 0 | BF3979: 0 | BG3979: 0 | BH3979: 0 | BI3979: 0 | BJ3979: 0 | BK3979: =E3937/D3937 ->  | CO3979: 0 | CP3979: 0 | CQ3979: 0 | CR3979: 0 | CS3979: 0 | CT3979: 0 | CU3979: 0 | CV3979: 0 | CW3979: 0 | CX3979: 0 | CY3979: 0 | CZ3979: 0 | DA3979: 0 | DB3979: 0
AV3980: =VLOOKUP(_xlfn.CONCAT(A3938,B3938),'Supuestos macro'!$AD$5:$AE$1068,2,FALSE) ->  | AW3980: 0 | AX3980: 0 | AY3980: 0 | AZ3980: 0 | BA3980: 0 | BB3980: 0 | BC3980: 0 | BD3980: 0 | BE3980: 0 | BF3980: 0 | BG3980: 0 | BH3980: 0 | BI3980: 0 | BJ3980: 0 | BK3980: =E3938/D3938 ->  | CO3980: 0 | CP3980: 0 | CQ3980: 0 | CR3980: 0 | CS3980: 0 | CT3980: 0 | CU3980: 0 | CV3980: 0 | CW3980: 0 | CX3980: 0 | CY3980: 0 | CZ3980: 0 | DA3980: 0 | DB3980: 0
AV3981: =VLOOKUP(_xlfn.CONCAT(A3939,B3939),'Supuestos macro'!$AD$5:$AE$1068,2,FALSE) ->  | AW3981: 0 | AX3981: 0 | AY3981: 0 | AZ3981: 0 | BA3981: 0 | BB3981: 0 | BC3981: 0 | BD3981: 0 | BE3981: 0 | BF3981: 0 | BG3981: 0 | BH3981: 0 | BI3981: 0 | BJ3981: 0 | BK3981: =E3939/D3939 ->  | CO3981: 0 | CP3981: 0 | CQ3981: 0 | CR3981: 0 | CS3981: 0 | CT3981: 0 | CU3981: 0 | CV3981: 0 | CW3981: 0 | CX3981: 0 | CY3981: 0 | CZ3981: 0 | DA3981: 0 | DB3981: 0
AV3982: =VLOOKUP(_xlfn.CONCAT(A3940,B3940),'Supuestos macro'!$AD$5:$AE$1068,2,FALSE) ->  | AW3982: 0 | AX3982: 0 | AY3982: 0 | AZ3982: 0 | BA3982: 0 | BB3982: 0 | BC3982: 0 | BD3982: 0 | BE3982: 0 | BF3982: 0 | BG3982: 0 | BH3982: 0 | BI3982: 0 | BJ3982: 0 | BK3982: =E3940/D3940 ->  | CO3982: 0 | CP3982: 0 | CQ3982: 0 | CR3982: 0 | CS3982: 0 | CT3982: 0 | CU3982: 0 | CV3982: 0 | CW3982: 0 | CX3982: 0 | CY3982: 0 | CZ3982: 0 | DA3982: 0 | DB3982: 0

Sheet Paso 3 - Modelo econometrico
B1: ESTIMACIÓN INICIAL
E5: I
B6: Año | C6: Mes | D6: Variable dependiente (y) | E6: PIB (X1) | F6: Tarifa (X2) | G6: Proporción días (X3) | H6: Dummy
C7: Enero
C8: Febrero
C9: Marzo
C10: Abril
C11: Mayo
C12: Junio
C13: Julio
C14: Agosto
C15: Septiembre
C16: Octubre
C17: Noviembre
C18: Diciembre
C19: Enero
C20: Febrero
C21: Marzo
C22: Abril
C23: Mayo
C24: Junio
C25: Julio
C26: Agosto
C27: Septiembre
C28: Octubre
C29: Noviembre
C30: Diciembre

Sheet Reestimación 1

Sheet Reestimación 2

Sheet Reestimación 3

Sheet Reestimación 4

Sheet Resultados
B1: Resultados Estimadores
C2: Aburrá | D2: I | E2: II | F2: III | G2: IV | H2: V | I2: VI | J2: VII | K2: IE | L2: IIE | M2: IIIE | N2: IVE | O2: VE | P2: VIE | Q2: VIIE
C3: Constante
C4: PIB
C5: Tarifa
C6: Proporción Días
C7: Dummy

Sheet Error y Linea base
C2: Percentil
C3: 0.95
B7: Año | C7: Mes

Sheet Consolidado
C2: NOTA: En caso en que haya tenido que correr varias macro para un mismo proyecto, incluya en esta hoja los resultados de la hoja "Error y Linea base" de esta y las demás macro que corrió, para luego continuar con los demás pasos de la valoración

Sheet Ajuste de Riesgo I
C2: Nota: En esta hoja incluya el Ajuste de Riesgo I de TODOS los peajes del proyecto en los que aplicó el caso CON INFORMACIÓN

Sheet Ajuste de Riesgo II
C2: Nota: En esta hoja incluya el Ajuste de Riesgo II de TODOS los peajes del proyecto en los que aplicó el caso CON INFORMACIÓN

Sheet Peajes Sin Info
C2: Nota: En esta hoja realice la valoración de los peajes para el CASO SIN INFORMACIÓN (Demanda)

Sheet Ingresos
C2: Nota: En esta hoja incluya las tarifas de los peajes CON y SIN información y estime los ingresos respectivos del proyecto para el riesgo de demanda
C5: Nota 2: Al final de esta hoja se deberá reflejar el valor contingente TOTAL del proyecto.

Sheet No incremento de Tarifas
C2: Nota: En esta hoja incluya la valoración de no incremento de Tarifas, en caso en que aplique, y pase los resultados a la hoja Ingresos.

Sheet Tarifas diferenciales
C2: Nota: En esta hoja incluya la valoración de Tarifas diferenciales, en caso en que aplique, y pase los resultados a la hoja Ingresos.

Sheet Otros
C2: Nota:En caso de tener más riesgos que deben ser valorados, incluya una pestaña por cada riesgo adicional que se valorará

Sheet Contingente - PA
C2: Nota: Esta hoja deberá tener el resumen del contingente de cada riesgo valorado y el plan de aportes que se someterá a aprobación, en caso en que aplique.
